Cogmind - Beta 13 @@@ ROGUE MODE // 2024.04.01 @ 20:24:43 Player: KoT Result: Destroyed by Y-45 Defender with Beam Rifle Performance ------------- Evolutions (1) 500 Regions Visited (2) 400 Robots Destroyed (25) 125 Value Destroyed (438) 438 Prototype IDs (1) 20 Alien Tech Used (0) 0 Bonus (0) 0 TOTAL SCORE: 1483 Bonus ------- None Cogmind --------- Core Integrity 0/400 Matter 240/300 Energy 100/100 System Corruption 0% Temperature Danger (422) Movement Core (1350) Ox26 Location -9/Materials Parts ------- > --- POWER (1) -------- (None) > --- PROPULSION (3) --- (None) > --- UTILITY (3) ------ Huge Storage Unit Signal Interpreter > --- WEAPON (2) ------- (None) > --- INVENTORY (25) --- Aluminum Leg Improved Aluminum Leg Heat Sink Small Storage Unit Field Recycling Unit (0) EM Shotgun EM Shotgun EM Shotgun EM Shotgun Particle Cannon Light Assault Rifle Peak State ------------ > --- POWER ------------ Ion Engine > --- PROPULSION ------- Flight Unit Flight Unit VTOL Module > --- UTILITY ---------- Huge Storage Unit Sensor Array Signal Interpreter > --- WEAPON ----------- Particle Cannon Advanced Beam Cannon > --- INVENTORY -------- Aluminum Leg Improved Aluminum Leg Heat Sink Small Storage Unit Field Recycling Unit EM Shotgun EM Shotgun EM Shotgun EM Shotgun Particle Cannon Light Assault Rifle [Rating: 14] Favorites ----------- Power Ion Engine Engine Ion Engine Propulsion VTOL Module Leg Aluminum Leg Hover Unit Improved Hover Unit Flight Unit VTOL Module Utility Huge Storage Unit Device Sensor Array Storage Huge Storage Unit Processor Signal Interpreter Weapon Particle Cannon Energy Gun EM Pulse Gun Energy Cannon Particle Cannon Ballistic Gun Assault Rifle Slashing Weapon Mining Claw Build | -11 -10 -9 ------- Run | Yrd Mat Mat Slots Evolved 2 | . . 2 Power . | . . . Propulsion 1 | . . 1 Utility 1 | . . 1 Weapon . | . . . Parts Attached 29 | 1 19 9 Power 3 | . 2 1 Engine 3 | . 2 1 Core . | . . . Reactor . | . . . Propulsion 12 | . 8 4 Treads . | . . . Leg 3 | . 3 . Wheel . | . . . Hover 3 | . 1 2 Flight 6 | . 4 2 Utility 6 | 1 2 3 Device 2 | . . 2 Storage 3 | 1 2 . Processor 1 | . . 1 Hackware . | . . . Protection . | . . . Artifact . | . . . Weapon 8 | . 7 1 Energy Gun 1 | . 1 . Energy Cannon 3 | . 2 1 Ballistic Gun 3 | . 3 . Ballistic Cannon . | . . . Launcher . | . . . Special Weapon . | . . . Impact Weapon . | . . . Slashing Weapon 1 | . 1 . Piercing Weapon . | . . . Special Melee Weapon . | . . . Unidentified Prototypes 1 | . . 1 Parts Lost 15 | . 6 9 Power 3 | . 1 2 Propulsion 6 | . 2 4 Utility 1 | . . 1 Weapon 5 | . 3 2 Highest Loss Streak 7 | . 5 7 To Critical Strikes . | . . . Average Slot Usage (%) 71 | . 63 78 Engine 10 | . 10 10 Flight 20 | . 18 22 Device 6 | . . 12 Storage 12 | . 13 11 Processor 5 | . . 9 Energy Cannon 9 | . 7 11 Ballistic Gun 2 | . 4 . Slashing Weapon 2 | . 5 . Naked Turns . | . . . Heaviest Build 94 | 5 89 94 Greatest Support 20 | 3 20 12 Greatest Overweight (x) 29 | 1 29 27 Average Overweight (x) 6 | . 5 10 Largest Inventory Capacity 25 | 8 25 25 Average Capacity 22 | 7 20 25 Most Carried 14 | 6 14 14 Average Carried 10 | 4 9 12 Final Capacity 25 | 8 25 25 Final Carried 11 | 6 11 11 Class Distribution -------------------- 94% | Mutant 5% | Scavenger-Mutant Dominant Class ---------------- Mutant | -10/Materials Mutant | -9/Materials Resources | -11 -10 -9 ----------- Run | Yrd Mat Mat Matter Collected 542 | 191 287 64 Remotely . | . . . Salvage Created 684 | . 505 179 Parts 52 | . 32 20 Haulers Intercepted . | . . . Recyclers Shooed 2 | . 2 . Parts Field Recycled . | . . . Retrieved Matter . | . . . Parts Self-Destructed . | . . . Prevented . | . . . Kills | -11 -10 -9 ------- Run | Yrd Mat Mat Combat Hostiles Destroyed 20 | . 12 8 Melee 3 | . 3 . Guns 4 | . 4 . Cannons 13 | . 5 8 Classes Destroyed 5 | . 4 1 Tunneler 1 | . . 1 Recycler 1 | . 1 . Watcher 3 | . 2 1 Swarmer 14 | . 6 8 Grunt 6 | . 6 . Best Kill Streak 5 | . 5 5 Combat Bots Only 5 | . 5 5 Max Kills in Single Turn 2 | . 1 2 Gunslinging . | . . . Exploded . | . . . Melee 1 | . 1 . Uniques/NPCs Destroyed . | . . . Combat | -11 -10 -9 -------- Run | Yrd Mat Mat Hostile Shots Fired 211 | . 89 122 Missed 47 | . 26 21 Damage Taken 1663 | . 673 990 Core 617 | . 203 414 Absorbed by Shields . | . . . Regen/Repaired (Parts) 444 | . 444 . Core Remaining (%) 59 | 100 18 . Volleys Fired 106 | . 71 35 Largest 2 | . 2 2 Hottest 136 | . 68 136 Shots Fired 116 | . 74 42 Gun 46 | . 46 . Cannon 70 | . 28 42 Launcher . | . . . Special . | . . . Kinetic 38 | . 38 . Thermal 70 | . 28 42 Explosive . | . . . Electromagnetic 8 | . 8 . Robot Hit Streak 6 | . 6 6 Robot Miss Streak 6 | . 6 4 Penetration Max . | . . . Secondary Targets . | . . . Shots Hit Robots 63 | . 44 19 Core Hits 30 | . 20 10 Critical Kills . | . . . Critical Parts Destroyed . | . . . Critical Strikes . | . . . Melee Attacks 27 | . 27 . Impact . | . . . Slashing 27 | . 27 . Piercing . | . . . Sneak Attacks 2 | . 2 . Combat Hostiles . | . . . Follow-up Attacks . | . . . Damage Inflicted 1297 | . 797 500 Guns 304 | . 304 . Cannons 847 | . 352 495 Explosions . | . . . Melee 141 | . 141 . Ramming 5 | . . 5 Kinetic 220 | . 220 . Thermal 847 | . 352 495 Explosive . | . . . Electromagnetic 84 | . 84 . Impact . | . . . Slashing 141 | . 141 . Piercing . | . . . Highest Corruption . | . . . Average Corruption . | . . . Corruption Purged . | . . . Corruption Blocked . | . . . Overload Shots . | . . . Overflow Damage 2 | . 1 1 Projectiles 2 | . 1 1 Explosions . | . . . Melee . | . . . Knockbacks . | . . . Impact . | . . . Kinetic . | . . . Secondary . | . . . Self-Inflicted Damage 2 | . . 2 Shots . | . . . Rammed 1 | . . 1 Targets Rammed 1 | . . 1 Kicked . | . . . Crushed . | . . . Highest Temperature 601 | . 437 601 Average Temperature 180 | . 140 221 Received Heat Transfer 393 | . 276 117 Effects 22 | . 4 18 Shutdowns 3 | . 2 1 Energy Bleed 2 | . . 2 Interference 1 | . 1 . Matter Decay 2 | . . 2 Short Circuit 2 | . . 2 Damage (minor) 2 | . 1 1 Damage (major) 9 | . . 9 Damage (core) 1 | . . 1 Siege Activations . | . . . Robots Corrupted . | . . . Combat Hostiles . | . . . Parts Fried . | . . . Impact Corruptions . | . . . Robots Melted . | . . . Combat Hostiles . | . . . Parts Melted 1 | . 1 . Heat Transferred 1517 | . 629 888 Parts Sabotaged . | . . . Parts Stolen . | . . . Parts Stripped . | . . . Power Chain Reactions . | . . . Alert | -11 -10 -9 ------- Run | Yrd Mat Mat Peak Influence 137 | . 137 95 Initial 13 | . . 13 Average 27 | . 41 17 Maximum Alert Level . | . . . Low Security (%) 100 | 100 100 100 Level 1 . | . . . Level 2 . | . . . Level 3 . | . . . Level 4 . | . . . Level 5 . | . . . High Security . | . . . Max Security . | . . . Squads Dispatched 2 | . 2 . Investigation . | . . . Extermination . | . . . Reinforcement 2 | . 2 . Assault . | . . . Garrison . | . . . Intercept . | . . . Searches Triggered . | . . . Construction Impeded . | . . . Haulers Reinforced . | . . . Active Scanning Responses . | . . . Cargo Convoy Interrupts . | . . . Stealth | -11 -10 -9 --------- Run | Yrd Mat Mat Distress Signals 6 | . 6 . Communications Jammed . | . . . Distress Signals . | . . . Times Spotted 46 | . 27 19 Peak Tracking Total 8 | . 4 8 Tactical Retreats 1 | . 1 . Traps | -11 -10 -9 ------- Run | Yrd Mat Mat Traps Triggered . | . . . Indirectly . | . . . Trap Hack Attempts . | . . . Triggered . | . . . Disarmed . | . . . Reprogrammed . | . . . Reused . | . . . Traps Extracted . | . . . Installed . | . . . Triggered . | . . . Machines | -11 -10 -9 ---------- Run | Yrd Mat Mat Machines Disabled 2 | . . 2 Max in Single Turn 1 | . . 1 Machines Repaired . | . . . Machines Dismantled . | . . . Machines Sabotaged . | . . . Overloaded Fab Kills . | . . . Hacking | -11 -10 -9 --------- Run | Yrd Mat Mat Machines Accessed 6 | . 4 2 Terminals 4 | . 2 2 Fabricators . | . . . Repair Stations 1 | . 1 . Recycling Units 1 | . 1 . Scanalyzers . | . . . Garrison Access . | . . . Total Hacks 11 | . 7 4 Successful 6 | . 5 1 Failed 5 | . 2 3 Catastrophic 2 | . . 2 Database Lockouts . | . . . Manual 1 | . . 1 Terminals 8 | . 4 4 Fabricators . | . . . Repair Stations 2 | . 2 . Recycling Units 1 | . 1 . Scanalyzers . | . . . Garrison Access . | . . . Terminal Hacks 3 | . 2 1 Robot Analysis 1 | . . 1 Locate Traps 1 | . 1 . Hauler Manifests 1 | . 1 . Fabricator Hacks . | . . . Repair Station Hacks 2 | . 2 . Scan Component 1 | . 1 . Repair 1 | . 1 . Recycling Unit Hacks 1 | . 1 . Report Inventory 1 | . 1 . Scanalyzer . | . . . Garrison Access Hacks . | . . . Unauthorized Hacks . | . . . Terminals . | . . . Fabricators . | . . . Repair Stations . | . . . Recycling Units . | . . . Scanalyzers . | . . . Garrison Access . | . . . Data Cores Recovered . | . . . Used . | . . . Hacking Detections 5 | . 2 3 Full Trace Events 1 | . 1 . Feedback Events . | . . . Feedback Blocked . | . . . Robot Schematics Acquired . | . . . Robots Built . | . . . Authchips . | . . . Time . | . . . Total Robot Build Rating . | . . . Part Schematics Acquired . | . . . Parts Built . | . . . Authchips . | . . . Time . | . . . Total Part Build Rating . | . . . Parts Repaired 1 | . 1 . Time 26 | . 26 . Parts Recycled . | . . . Recycled Matter . | . . . Retrieved Matter . | . . . Retrieved Components . | . . . Parts Scanalyzed . | . . . Part Schematics Acquired . | . . . Parts Damaged . | . . . Bothacking | -11 -10 -9 ------------ Run | Yrd Mat Mat Used RIF Installer . | . . . Robots Hacked . | . . . Non-combat . | . . . Combat . | . . . Robot Hacks Applied . | . . . Relay Couplers Released . | . . . Fabnet Peak Effective % . | . . . Robots Rewired . | . . . Allies Hacked . | . . . Hacks Repelled . | . . . Allies | -11 -10 -9 -------- Run | Yrd Mat Mat Total Allies . | . . . Largest Group . | . . . Highest-Rated Group . | . . . Highest-Rated Ally . | . . . Total Orders . | . . . Ally Attacks . | . . . Total Damage . | . . . Kills . | . . . Allies Corrupted . | . . . Allies Melted . | . . . Intel | -11 -10 -9 ------- Run | Yrd Mat Mat Robot Analysis Total 1 | . . 1 Derelict Logs Recovered . | . . . Drone Launches . | . . . Drone Recoveries . | . . . Exploration | -11 -10 -9 ------------- Run | Yrd Mat Mat Turns Passed 4469 | 44 1998 2427 Spaces Moved 732 | 42 420 270 Core 279 | 42 236 1 Treads . | . . . Legs 20 | . 20 . Wheels . | . . . Hover 4 | . . 4 Flight 429 | . 164 265 Fastest Speed 50 | 50 100 592 Average Speed 560 | 86 412 863 Slowest Speed 1795 | 100 1795 1400 Overloaded Moves . | . . . Propulsion Burnouts . | . . . Robots Hopped . | . . . Cave-ins Triggered . | . . . Exploration Rate (%) 24 | 3 45 24 Regions Visited 2 Branch Regions . Pre-discovered Areas . | . . . Known Exits Taken . | . . . Unknown Exits Taken 2 | 1 1 . Scrap Searched . | . . . Spaces Dug 3 | . 3 . Terrain Destroyed 3 | . 3 . Melee 3 | . 3 . Projectile . | . . . AOE . | . . . Terrain Rammed . | . . . Walls Destroyed . | . . . Machines Disabled . | . . . Actions | -11 -10 -9 --------- Run | Yrd Mat Mat Total 942 | 49 566 327 Wait 1 | . 1 . Move 730 | 41 419 270 Hop . | . . . Pick Up 37 | 7 22 8 Fast Attach 1 | . 1 . Attach 26 | 1 16 9 Detach 6 | . 4 2 Swap 2 | . 2 . Drop 5 | . 3 2 Fire 106 | . 71 35 Melee 27 | . 27 . Ram 1 | . . 1 Kick . | . . . Crush . | . . . Escape Stasis . | . . . Rewire . | . . . Trap . | . . . Miscellaneous . | . . . Route ------- -11/Scrapyard -10/Materials (discovered 2 exits: *Mat / [*Min]) -9/Materials History --------- Turn | Location | Event 7 | -11/Scrapyard | Discovered new exit (range 16) 45 | -11/Scrapyard | Entered Materials 329 | -10/Materials | Build established: Mutant 862 | -10/Materials | Core integrity fell below 50% 912 | -10/Materials | Lost 5 parts (1p2n2w) 971 | -10/Materials | Core integrity fell below 20% 1209 | -10/Materials | Discovered new exit (range 12) 1682 | -10/Materials | Repaired Huge Storage Unit 1923 | -10/Materials | Discovered new exit (range 5) 2043 | -10/Materials | Entered another Materials area 2043 | -9/Materials | Evolved 2 slots: Propulsion x1, Utility x1 4450 | -9/Materials | Core integrity fell below 50% 4458 | -9/Materials | Core integrity fell below 20% 4470 | -9/Materials | Destroyed by Y-45 Defender with Beam Rifle Last Messages --------------- (-264). 04461_ Overheating: Adv. Beam Cannon damaged (-18). 04461_ Broken Particle Cannon destroyed. 04462_ R-06 Scavenger collects Flight Unit. 04463_ Overheating: Huge Storage Unit damaged (-27). 04464_ Overheating: Energy bleed (-24). 04465_ Overheating: Huge Storage Unit damaged (-27). 04465_ Overheating: Broken Signal Interpreter damaged (-5). 04465_ Overheating: Adv. Beam Cannon damaged (-14). 04466_ R-06 Scavenger collects Lgt. Assault Rifle. 04467_ Adv. Beam Cannon destroyed. 04469_ R-06 Scavenger collects Lgt. Assault Rifle. 04470_ Critical hit (Burn: +37). Map ----- +----------------------------------------------------+ | ???????????????????????????????? | | ???????????????????????????????? | | ?????????????????????????????????########### ### | | ?????????????????????????????????# # #?# | | ?????????????????????????????????# ! # #?# | | ?????????????????????????????????# ]# #?# | | ?????????????????????????????????# # ### | | ?????????????????????????????????# """ """ / + | | ???????????????????????????????????""" """ # ### | | ????????????????????????????????????"" """ # #?# | | ???????????????????????????????????? # #?# | | ????????????????????????????????????######## #?# | | ???????????????????????##??????????????????# #?# | | ??????????????????????? ??????????????????# #?# | | ??????????????????????? ??????????????????# #?? | | ???????????????????????? ????????????????# ### | | ???????????????????????? ""????????????????# # | | ???????????????????????? ""????????????????# # " | | ???????????????????????? ""????????????????# # " | | ???????????????????????? ????????????????# + " | | ???????????????????#???? % ????????????????# # | | ??????????????????##+####+##???????????????# # | | ??????????????????# %s =#?????########### ### | | ??????????????????# %Y r #?????# # # | | ??????????????????# %% #?????# # # " | | ??????????????????# ###@ #?????# """ # # " | | ????????????????????????# ###???# """"" + + " | | ????????????????????????# #???#| """"" # # " | | ????????????????????????# #???# """"" # # " | | ????????????????????????# #???# """ # # " | | ????????????????????????# u#???# # # " | | ????????????????????????# #???########### # | | ???????????????????######+##+#?????????????# ### | | ???????????????????# ^ ############### #?? | | ???????????????????# # #?? | | ???????????????????# + ### | | ???????????????????# ! # "" | | ???????????????????# # "" ########+#### | | ???????????????????# # T" #??# | | ???????????????????# # "" #??#* | | ???????????????????# # "" #??#%""" """ | | ???????????????????########### #### "" """ | | ?????????????????????????????# + """ """ | | ?????????????????????????????# ##+#### [ | | ?????????????????????????????# # ! # = | | ?????????????????????????????# + # = / | | ?????????????????????????????###### "T" ########## | | ??????????????????????????????????# """ #????????? | | ??????????????????????????????????#######????????? | | ?????????????????????????????????????????????????? | +----------------------------------------------------+ Best States ------------- Heat Dissipation 38 Energy Generation 10 Energy Capacity 250 Matter Stores 300 Matter Capacity 300 Sight Range 16 Robot Scan Range 14 Terrain Scan Density 10 Evasion (%) 50 Item Schematics ----------------- None Robot Schematics ------------------ None Fabricated ------------ Nothing Alien Tech Used ----------------- None Achievements -------------- None Challenges ------------ None Game ------ Seed ReactionMiniProtomatter Manual? 0 Play Time 00:25:18 Cumulative 8.6 hours Start 2024.04.01 @ 19:47:29 End 2024.04.01 @ 20:24:43 Sessions 1 Manual Loads 0 Difficulty Rogue Special Mode None Game No. 13 Rogue 13 Adventurer 0 Explorer 0 Win Type - Total 0 Types 0/0/0/0/0/0/0/0/0 Lore% 16 Gallery% 12 Achievement% 14 Wizard Run 0 Options --------- Layout 1 ASCII 0 Keyboard 0 Movement Mouse Keybinds 0 Fullscreen 1 Font 24/Smallcaps Map View 50x35 Zoom Use 0% Tactical HUD 1 Map Filters NONE Filters NONE Steam 0 RUN: e490d05c-276f-49dd-bc60-f324fd03fdf4